bitfinex/quotes_SOLUSD_20241016
["timestamp","ask_amount","ask_price","bid_price","bid_amount"]
[1729102270632,4.78509885,154.98,154.93,11.53837686]
[1729102270836,4.78509885,154.97,154.94,6.0912]
[1729102271136,13.17690625,155.01,154.95,26.99637686]
[1729102271357,4.78491492,155.0,154.95,26.99637686]
[1729102271663,6.72550625,155.01,154.95,26.99637686]
[1729102271664,4.78491492,154.99,154.95,26.99637686]
[1729102271841,4.78491492,154.98,154.95,26.99637686]
[1729102272041,6.72550625,155.01,154.95,26.99637686]
[1729102272342,4.77783218,155.0,154.95,26.99637686]
[1729102272551,4.77783218,154.99,154.95,26.99637686]
[1729102272751,6.72550625,155.01,154.95,26.99637686]
[1729102272971,4.77721441,155.0,154.95,26.99637686]
[1729102273141,4.77721441,154.99,154.95,26.99637686]
[1729102273343,6.72550625,155.01,154.95,26.99637686]
[1729102273566,4.77312437,155.0,154.95,26.99637686]
[1729102273858,4.77312437,154.99,154.95,26.99637686]
[1729102274049,6.72550625,155.01,154.95,26.99637686]
[1729102274251,4.77060583,155.0,154.95,26.99637686]
[1729102274452,6.72550625,155.01,154.95,26.99637686]
[1729102274764,4.77005687,155.0,154.95,26.99637686]
[1729102274933,6.72550625,155.01,154.95,26.99637686]
[1729102275445,6.72550625,155.01,154.97,11.53837686]
[1729102275642,6.4494,155.06,154.99,11.53837686]
[1729102275973,13.17234891,155.06,154.99,11.53837686]
[1729102276183,4.76859613,155.05,154.99,11.53837686]
[1729102276470,6.72294891,155.06,154.99,11.53837686]
[1729102277671,13.17204891,155.06,154.99,11.53837686]
[1729102279655,6.72294891,155.06,155.01,27.42927686]
[1729102279870,10.07013419,155.07,155.03,11.53837686]
[1729102282053,10.07013419,155.07,155.01,15.8909]
[1729102282555,6.449,155.07,155.01,15.8909]
[1729102284470,23.776884,155.09,155.01,15.8909]
[1729102284655,6.4491,155.06,155.01,15.8909]
[1729102285960,23.776884,155.09,155.01,15.8909]
[1729102286163,6.45,155.04,155.0,6.0287]
[1729102286685,20.0,155.04,154.93,6.6437372]
[1729102286850,6.4531,154.97,154.93,0.0608372]
[1729102288455,36.4533,154.96,154.93,0.0608372]
[1729102290963,30.0,154.96,154.93,0.0608372]
[1729102295180,13.17732635,154.98,154.93,0.0608372]
[1729102300462,6.72492635,154.98,154.93,0.0608372]
[1729102301865,13.17742635,154.98,154.93,0.0608372]
[1729102305371,6.4529,154.97,154.93,0.0608372]
[1729102307295,13.17742635,154.98,154.93,0.0608372]
[1729102308603,6.453,154.97,154.93,0.0608372]
[1729102310293,13.17742635,154.98,154.93,0.0608372]
[1729102317887,12.48764235,154.98,154.93,0.0608372]
[1729102320389,6.03514235,154.98,154.93,0.0608372]
[1729102320593,6.4521,154.99,154.93,0.0608372]
[1729102320786,20.0,155.0,154.93,0.0608372]
[1729102320987,4.77050829,154.99,154.93,0.0608372]
[1729102321200,26.4516,155.0,154.93,0.0608372]
[1729102322302,4.77053901,154.99,154.93,0.0608372]
[1729102322605,26.4516,155.0,154.93,0.0608372]
[1729102323208,23.776884,155.0,154.94,11.52757713]
[1729102323414,23.776884,155.0,154.94,26.99057713]
[1729102325907,4.77460618,154.99,154.94,26.99057713]
[1729102326105,30.228484,155.0,154.94,26.99057713]
[1729102326421,4.77839728,154.99,154.94,11.52757713]
[1729102327108,4.77839728,154.99,154.93,20.0608372]
[1729102328089,9.70539575,154.98,154.94,11.52757713]
[1729102328412,4.77839728,154.97,154.94,11.52757713]
[1729102328588,4.77839728,154.96,154.94,11.52757713]
[1729102328795,30.228584,155.0,154.94,11.52757713]
[1729102329099,4.79120521,154.99,154.94,11.52757713]
[1729102329296,4.79120521,154.98,154.94,11.52757713]
[1729102329506,4.79120521,154.97,154.94,11.52757713]
[1729102329694,30.228584,155.0,154.94,11.52757713]
[1729102329896,4.79043282,154.99,154.94,11.52757713]
[1729102330099,4.79043282,154.98,154.94,11.52757713]
[1729102330307,4.79043282,154.97,154.94,11.52757713]
[1729102330610,30.228584,155.0,154.94,11.52757713]
[1729102330813,4.79020084,154.99,154.94,11.52757713]
[1729102331117,4.79020084,154.98,154.94,11.52757713]
[1729102331288,4.79020084,154.97,154.94,11.52757713]
[1729102331490,30.228584,155.0,154.94,11.52757713]
[1729102331819,4.79008671,154.99,154.94,11.52757713]
[1729102332113,4.79008671,154.98,154.94,11.52757713]
[1729102332294,4.79008671,154.97,154.94,11.52757713]
[1729102332614,6.4512,155.01,154.94,11.52757713]
[1729102332794,4.79007029,155.0,154.94,11.52757713]
[1729102332996,4.79007029,154.99,154.94,11.52757713]
[1729102333192,4.79007029,154.98,154.94,11.52757713]
[1729102333392,4.79007029,154.97,154.94,11.52757713]
[1729102333594,6.4512,155.01,154.94,11.52757713]
[1729102333832,4.78992839,155.0,154.94,11.52757713]
[1729102334118,4.78992839,154.99,154.94,11.52757713]
[1729102334322,4.78992839,154.98,154.94,11.52757713]
[1729102334507,4.78992839,154.97,154.94,11.52757713]
[1729102334698,6.4512,155.01,154.94,11.52757713]
[1729102334893,4.78972898,155.0,154.94,11.52757713]
[1729102335093,4.78972898,154.99,154.94,11.52757713]
[1729102335306,4.78972898,154.98,154.94,11.52757713]
[1729102335510,6.4512,155.01,154.94,11.52757713]
[1729102335511,4.78972898,154.97,154.94,11.52757713]
[1729102335812,6.4512,155.01,154.94,11.52757713]
[1729102335992,4.78961752,155.0,154.94,11.52757713]
[1729102336195,4.78961752,154.99,154.94,11.52757713]
[1729102336418,4.78961752,154.98,154.94,11.52757713]
[1729102336589,4.78961752,154.97,154.94,11.52757713]
[1729102336792,6.4512,155.01,154.94,11.52757713]
[1729102336992,4.78969375,155.0,154.94,11.52757713]
[1729102337194,4.78969375,154.99,154.94,11.52757713]
[1729102337390,4.78969375,154.98,154.94,11.52757713]
[1729102337591,4.78969375,154.97,154.94,11.52757713]
[1729102337815,6.4512,155.01,154.94,11.52757713]
[1729102338021,4.78984658,155.0,154.94,11.52757713]
[1729102338328,4.78984658,154.99,154.94,11.52757713]
[1729102338529,4.78976408,154.98,154.94,11.52757713]
[1729102339008,4.78976408,154.97,154.94,11.52757713]
[1729102339216,6.4512,155.01,154.94,11.52757713]
[1729102339397,4.78956709,155.0,154.94,11.52757713]
[1729102339595,4.78956709,154.99,154.94,11.52757713]
[1729102339794,4.78956709,154.98,154.94,11.52757713]
[1729102339998,4.78956709,154.97,154.94,11.52757713]
[1729102340215,6.4512,155.01,154.94,11.52757713]
[1729102340410,4.78970936,155.0,154.94,11.52757713]
[1729102340612,15.00564111,154.99,154.94,11.52757713]
[1729102340921,4.78970936,154.98,154.94,11.52757713]
[1729102341105,6.4512,155.01,154.94,11.52757713]
[1729102341309,4.78978273,155.0,154.94,11.52757713]
[1729102341507,4.78978273,154.99,154.94,11.52757713]
[1729102341713,4.78978273,154.98,154.94,11.52757713]
[1729102341913,10.07320287,155.02,154.97,20.0]
[1729102342237,16.3025,155.07,154.97,20.1]
[1729102342238,4.79033704,155.01,154.97,20.1]
[1729102342434,16.3025,155.07,155.01,11.52757713]
[1729102342735,4.7889929,155.06,155.01,11.52757713]
[1729102342910,4.7889929,155.05,155.03,11.52757713]
[1729102343109,4.7889929,155.04,155.03,11.52757713]
[1729102344206,6.4479,155.09,155.03,11.52757713]
[1729102344430,4.78369095,155.08,155.03,11.52757713]
[1729102344645,4.78369095,155.07,155.03,11.52757713]
[1729102344820,4.78369095,155.06,155.01,20.0]
[1729102345021,10.06877022,155.1,154.99,20.0]
[1729102345022,11.23329095,155.05,154.99,20.0]
[1729102345225,11.23329095,155.05,154.98,11.52757713]
[1729102345226,4.78369095,155.04,154.98,11.52757713]
[1729102345429,4.78222592,155.03,154.98,11.52757713]
[1729102345634,6.45,155.04,154.98,11.52757713]
[1729102345814,4.78183702,155.03,154.98,11.52757713]
[1729102346145,6.45,155.04,154.98,11.52757713]
[1729102346315,4.78117236,155.03,154.98,11.52757713]
[1729102346519,20.0,155.09,154.98,11.52757713]
[1729102346520,4.78117236,155.02,154.98,11.52757713]
[1729102346719,6.4496,155.05,154.98,11.52757713]
[1729102346920,4.78127227,155.04,154.98,11.52757713]
[1729102347230,4.78127227,155.03,154.98,11.52757713]
[1729102347433,6.4496,155.05,154.98,11.52757713]
[1729102347627,4.78092948,155.04,154.98,11.52757713]
[1729102347832,4.78092948,155.03,154.98,11.52757713]
[1729102348029,6.4496,155.05,154.98,11.52757713]
[1729102348340,4.78095932,155.04,154.98,11.52757713]
[1729102348515,4.78095932,155.03,154.98,11.52757713]
[1729102348827,6.4496,155.05,154.98,11.52757713]
[1729102349031,4.78067249,155.04,154.98,11.52757713]
[1729102349239,4.78067249,155.03,154.98,11.52757713]
[1729102349433,6.4496,155.05,154.98,11.52757713]
[1729102349613,4.78037545,155.04,154.98,11.52757713]
[1729102349818,6.4496,155.05,154.98,11.52757713]
[1729102350141,4.78038977,155.04,154.98,11.52757713]
[1729102351723,11.23048977,155.04,154.98,11.52757713]
[1729102352022,4.78038977,155.03,154.98,11.52757713]
[1729102352343,30.227484,155.03,154.97,20.0]
[1729102352526,4.77939038,155.02,154.97,20.0]
[1729102352722,30.227484,155.03,154.97,20.0]
[1729102353051,6.4514,155.01,154.96,20.0]
[1729102353248,6.4514,155.01,154.93,0.0608372]
[1729102353249,6.4514,155.01,154.94,20.0]
[1729102353447,6.4517,155.0,154.94,20.0]
[1729102353745,6.4517,155.0,154.93,11.58841433]
[1729102353944,4.77891075,154.99,154.93,11.58841433]
[1729102354151,6.4517,155.0,154.93,11.58841433]
[1729102354346,4.77935397,154.99,154.93,11.58841433]
[1729102354531,6.4517,155.0,154.93,11.58841433]
[1729102354758,6.4517,155.0,154.94,20.0]
[1729102356341,4.7796286,154.99,154.94,20.0]
[1729102356537,6.4517,155.0,154.94,20.0]
[1729102356738,4.77959003,154.99,154.94,20.0]
[1729102356925,6.4517,155.0,154.94,20.0]
[1729102357251,4.77912043,154.99,154.94,20.0]
[1729102357440,6.4517,155.0,154.94,20.0]
[1729102357640,4.77929114,154.99,154.94,20.0]
[1729102357838,6.4517,155.0,154.94,20.0]
[1729102358043,14.89054116,154.99,154.94,20.0]
[1729102358256,6.4517,155.0,154.94,20.0]
[1729102358447,4.7795501,154.99,154.94,20.0]
[1729102358634,6.4517,155.0,154.94,20.0]
[1729102358947,4.7795524,154.99,154.94,20.0]
[1729102359253,23.776884,154.99,154.93,0.0608372]
[1729102359452,11.23173847,154.98,154.93,0.0608372]
[1729102359633,6.4524,154.98,154.93,0.0608372]
[1729102359829,30.230984,154.94,154.93,0.0608372]
[1729102360356,35.00861872,154.94,154.93,0.0608372]
[1729102361050,65.00861872,154.94,154.93,0.0608372]
[1729102362754,74.87995111,154.94,154.93,0.0608372]
[1729102362960,65.00861872,154.94,154.93,0.0608372]
[1729102364760,74.69003661,154.94,154.93,0.0608372]
[1729102364943,65.00861872,154.94,154.93,0.0608372]
[1729102365356,60.230984,154.94,154.93,0.0608372]
[1729102365654,65.00259413,154.94,154.93,0.0608372]
[1729102368934,64.9986617,154.94,154.93,0.0608372]
[1729102369353,60.230984,154.94,154.93,0.0608372]
[1729102370853,53.776884,154.94,154.93,0.0608372]
[1729102375043,63.92492859,154.94,154.93,0.0608372]
[1729102375237,23.776884,154.94,154.93,0.0608372]
[1729102376463,30.230984,154.94,154.93,0.0608372]
[1729102378262,60.230984,154.94,154.93,0.0608372]
[1729102382664,60.230984,154.94,154.93,0.0608372]
[1729102383162,64.98560048,154.94,154.93,0.0608372]
[1729102383359,60.230984,154.94,154.93,0.0608372]
[1729102383657,70.63936464,154.94,154.93,0.0608372]
[1729102383964,30.230984,154.94,154.93,0.0608372]
[1729102384169,41.23506783,154.94,154.93,0.0608372]
[1729102384345,30.230984,154.94,154.93,0.0608372]
[1729102386472,50.230984,154.94,154.93,0.0608372]
[1729102386846,80.230984,154.94,154.93,0.0608372]
[1729102387271,39.90166027,154.94,154.93,0.0608372]
[1729102387438,30.0,154.94,154.93,0.0608372]
[1729102388354,23.776884,154.94,154.93,0.0608372]
[1729102388553,30.230984,154.94,154.93,0.0608372]
[1729102388756,6.4535,154.96,154.93,0.0608372]
[1729102388961,23.776884,154.95,154.93,0.0608372]
[1729102389555,21.6023,155.0,154.93,0.0608372]
[1729102389556,6.4529,154.97,154.93,0.0608372]
[1729102390766,23.776884,154.96,154.93,0.0608372]
[1729102398377,4.77517889,154.95,154.93,0.0608372]
[1729102398583,23.776884,154.96,154.93,0.0608372]
[1729102398756,11.22882483,154.95,154.93,0.0608372]
[1729102398955,6.4537,154.95,154.93,0.0608372]
[1729102399958,30.230184,154.96,154.93,0.0608372]
[1729102400157,4.77745091,154.95,154.93,0.0608372]
[1729102400358,30.230184,154.96,154.93,0.0608372]
[1729102400671,4.77951781,154.95,154.93,0.0608372]
[1729102400970,30.230184,154.96,154.93,0.0608372]
[1729102401163,4.77964891,154.95,154.93,0.0608372]
[1729102401358,4.77964891,154.94,154.93,0.0608372]
[1729102401559,4.77964891,154.95,154.93,0.0608372]
[1729102401771,4.77964891,154.94,154.93,0.0608372]
[1729102402270,4.77964891,154.95,154.93,0.0608372]
[1729102402479,4.77964891,154.94,154.93,0.0608372]
[1729102403260,4.78469302,154.94,154.93,0.0608372]
[1729102404183,28.56157702,154.94,154.93,0.0608372]
[1729102404483,65.01567702,154.94,154.93,0.0608372]
[1729102406981,65.02095212,154.94,154.93,0.0608372]
[1729102407571,75.8800378,154.94,154.93,0.0608372]
[1729102407775,65.02095212,154.94,154.93,0.0608372]
[1729102409779,60.230984,154.94,154.93,0.0608372]
[1729102410186,85.02094849,154.94,154.93,0.0608372]
[1729102410485,101.32564849,154.94,154.93,0.0608372]
[1729102411688,34.78996449,154.94,154.88,11.52757713]
[1729102411872,34.78996449,154.93,154.9,11.52757713]
[1729102412079,4.78996449,154.92,154.9,11.52757713]
[1729102412270,30.0,154.93,154.9,11.52757713]
[1729102412471,4.78917236,154.92,154.9,11.52757713]
[1729102412789,30.0,154.93,154.9,11.52757713]
[1729102413094,4.78933272,154.92,154.9,11.52757713]
[1729102413271,30.0,154.93,154.9,11.52757713]
[1729102413469,4.78909284,154.92,154.9,11.52757713]
[1729102413670,30.0,154.93,154.9,11.52757713]
[1729102413872,4.78908172,154.92,154.9,11.52757713]
[1729102414185,23.776884,154.94,154.9,11.52757713]
[1729102414387,4.78910504,154.93,154.9,11.52757713]
[1729102414572,4.78910504,154.92,154.9,11.52757713]
[1729102414889,23.776884,154.94,154.9,11.52757713]
[1729102415070,4.78911722,154.93,154.9,11.52757713]
[1729102415272,4.78911722,154.92,154.9,11.52757713]
[1729102415595,23.776884,154.94,154.9,11.52757713]
[1729102415892,4.78933461,154.93,154.9,11.52757713]
[1729102416063,4.78933461,154.92,154.9,11.52757713]
[1729102416268,23.776884,154.94,154.9,11.52757713]
[1729102416469,4.78922187,154.93,154.9,11.52757713]
[1729102416664,4.78922187,154.92,154.9,11.52757713]
[1729102416872,23.776884,154.94,154.9,11.52757713]
[1729102417085,4.78924376,154.93,154.9,11.52757713]
[1729102417296,4.78924376,154.92,154.86,20.0]
[1729102417587,6.4573,154.87,154.81,21.5599]
[1729102418565,4.78617868,154.86,154.81,21.5599]
[1729102418765,6.4573,154.87,154.81,21.5599]
[1729102418982,4.78611342,154.86,154.81,21.5599]
[1729102419997,23.776884,154.87,154.81,21.5599]
[1729102422195,30.233884,154.87,154.81,21.5599]
[1729102422374,6.4575,154.86,154.81,21.5599]
[1729102424179,6.4575,154.86,154.82,6.4588]
[1729102425081,6.4582,154.85,154.81,21.7663]
[1729102425498,6.4582,154.85,154.81,6.4594]
[1729102430403,30.0,154.84,154.81,6.4594]
[1729102431198,23.776884,154.83,154.77,21.9924]
[1729102431404,30.235584,154.83,154.78,32.15024323]
[1729102431608,30.235584,154.83,154.8,6.4599]
[1729102431609,23.776884,154.83,154.8,6.4599]
[1729102432808,30.0,154.84,154.81,6.4593]
[1729102437394,36.4583,154.84,154.8,17.98717713]
[1729102437795,30.0,154.84,154.8,11.52757713]
[1729102437991,30.0,154.84,154.81,6.4594]
[1729102443596,30.235584,154.83,154.78,0.6226661]
[1729102443810,30.235584,154.83,154.79,6.46]
[1729102444209,6.4591,154.82,154.79,6.46]
[1729102444712,30.235684,154.83,154.79,6.46]
[1729102445695,6.4581,154.85,154.81,6.4594]
[1729102446225,23.776884,154.86,154.79,11.52757713]
[1729102446399,23.776884,154.86,154.79,6.4601]
[1729102446400,6.4587,154.83,154.79,6.4601]
[1729102454917,6.4583,154.84,154.8,6.4595]
[1729102455110,15.1615,154.88,154.81,11.52757713]
[1729102455307,11.25148765,154.87,154.83,6.4586]
[1729102455510,30.0,154.84,154.83,6.4586]
[1729102456621,30.0,154.84,154.81,11.52757713]
[1729102456819,30.0,154.84,154.82,6.4588]
[1729102457722,6.4574,154.86,154.82,6.4588]
[1729102459324,4.79884485,154.85,154.82,6.4588]
[1729102459502,6.4574,154.86,154.82,6.4588]
[1729102459701,4.7988849,154.85,154.82,6.4588]
[1729102459922,6.4574,154.86,154.82,6.4588]
[1729102460136,4.79901505,154.85,154.82,6.4588]
[1729102460305,6.457,154.87,154.83,6.4582]
[1729102460502,4.80130285,154.86,154.85,11.52757713]
[1729102460701,10.08149168,154.88,154.87,6.457]
[1729102460901,10.08149168,154.88,154.87,17.98457713]
[1729102461308,15.4285,154.96,154.9,6.4556]
[1729102461502,11.25987295,154.95,154.9,6.4556]
[1729102461724,4.80607295,154.94,154.89,11.52757713]
[1729102462221,11.26027295,154.94,154.89,11.52757713]
[1729102462408,4.80607295,154.93,154.89,11.52757713]
[1729102463109,4.80607295,154.93,154.85,20.0]
[1729102463314,4.80607295,154.93,154.88,11.52757713]
[1729102466231,6.4542,154.94,154.88,11.52757713]
[1729102475332,6.4549,154.92,154.85,20.0]
[1729102475539,6.4553,154.91,154.87,11.52757713]
[1729102476410,6.4558,154.9,154.85,20.0]
[1729102476617,6.4558,154.9,154.84,11.52757713]
[1729102476827,6.4567,154.88,154.84,11.52757713]
[1729102477726,6.4563,154.89,154.84,11.52757713]
[1729102479752,39.913884,154.93,154.84,11.52757713]
[1729102479925,6.4566,154.88,154.84,11.52757713]
[1729102481443,6.4563,154.89,154.84,11.52757713]
[1729102482244,6.4567,154.88,154.84,11.52757713]
[1729102483943,39.913884,154.93,154.84,11.52757713]
[1729102484146,6.4563,154.89,154.84,11.52757713]
[1729102485549,39.913884,154.93,154.8,15.4108]
[1729102485550,39.913884,154.93,154.81,20.0]
[1729102485844,6.457,154.87,154.83,11.52757713]
[1729102486740,6.457,154.87,154.81,20.0]
[1729102486923,6.457,154.87,154.82,11.52757713]
[1729102487340,6.457,154.87,154.81,20.0]
[1729102487619,6.457,154.87,154.82,11.52757713]
[1729102488224,6.4567,154.88,154.82,11.52757713]
[1729102490041,10.89917647,154.87,154.82,11.52757713]
[1729102490240,6.4567,154.88,154.82,11.52757713]
[1729102491436,10.73285234,154.87,154.82,11.52757713]
[1729102491643,6.4567,154.88,154.82,11.52757713]
[1729102492629,6.4567,154.88,154.84,11.52757713]
[1729102493051,10.05278382,154.87,154.84,11.52757713]
[1729102493229,6.4567,154.88,154.84,11.52757713]
[1729102494629,9.84849859,154.87,154.84,11.52757713]
[1729102494832,6.4567,154.88,154.84,11.52757713]
[1729102495733,23.776884,154.9,154.84,11.52757713]
[1729102496227,23.776884,154.88,154.84,11.52757713]
[1729102497134,6.457,154.87,154.84,11.52757713]
[1729102497937,23.776884,154.88,154.84,11.52757713]
[1729102498143,6.4567,154.88,154.84,11.52757713]
[1729102502345,16.4176667,154.88,154.84,11.52757713]
[1729102502534,6.4567,154.88,154.84,11.52757713]
[1729102503044,16.35370956,154.88,154.84,11.52757713]
[1729102503349,6.4567,154.88,154.84,11.52757713]
[1729102505659,10.29175705,154.87,154.84,11.52757713]
[1729102505953,6.4567,154.88,154.84,11.52757713]
[1729102506544,4.80580564,154.87,154.84,11.52757713]
[1729102506757,6.4567,154.88,154.84,11.52757713]
[1729102506937,4.80576116,154.87,154.84,11.52757713]
[1729102507235,6.4567,154.88,154.84,11.52757713]
[1729102507437,14.80037406,154.87,154.84,11.52757713]
[1729102507642,6.4567,154.88,154.84,11.52757713]
[1729102507844,4.805652,154.87,154.84,11.52757713]
[1729102508054,6.4567,154.88,154.84,11.52757713]
[1729102508258,4.80559206,154.87,154.84,11.52757713]
[1729102508453,6.4567,154.88,154.84,11.52757713]
[1729102508668,4.80336135,154.87,154.84,11.52757713]
[1729102508839,6.4567,154.88,154.84,11.52757713]
[1729102509242,4.80312443,154.87,154.84,11.52757713]
[1729102509440,6.4567,154.88,154.84,11.52757713]
[1729102509733,4.80341935,154.87,154.84,11.52757713]
[1729102509954,6.4567,154.88,154.84,11.52757713]
[1729102510155,4.8034123,154.87,154.84,11.52757713]
[1729102510344,6.4567,154.88,154.84,11.52757713]
[1729102510548,4.80384058,154.87,154.84,11.52757713]
[1729102510746,6.4567,154.88,154.84,11.52757713]
[1729102510948,14.9148069,154.87,154.84,11.52757713]
[1729102511156,6.4567,154.88,154.84,11.52757713]
[1729102511347,4.80437469,154.87,154.84,11.52757713]
[1729102511666,6.4567,154.88,154.84,11.52757713]
[1729102511841,4.8030459,154.87,154.84,11.52757713]
[1729102512043,6.4567,154.88,154.84,11.52757713]
[1729102512259,4.80312008,154.87,154.84,11.52757713]
[1729102512449,6.4567,154.88,154.84,11.52757713]
[1729102512641,4.80355874,154.87,154.84,11.52757713]
[1729102512858,6.4567,154.88,154.84,11.52757713]
[1729102513066,4.80286219,154.87,154.82,11.52757713]
[1729102513358,6.4567,154.88,154.82,11.52757713]
[1729102513669,4.80296798,154.87,154.82,11.52757713]
[1729102513870,6.4567,154.88,154.82,11.52757713]
[1729102514041,4.80304922,154.87,154.82,11.52757713]
[1729102514242,6.4567,154.88,154.82,11.52757713]
[1729102514461,4.8037453,154.87,154.82,11.52757713]
[1729102514670,10.24976095,154.86,154.82,11.52757713]
[1729102514969,6.4567,154.88,154.82,11.52757713]
[1729102515159,4.80376525,154.87,154.82,11.52757713]
[1729102515359,6.4567,154.88,154.82,11.52757713]
[1729102515552,4.80459277,154.87,154.82,11.52757713]
[1729102515862,6.4567,154.88,154.82,11.52757713]
[1729102516063,4.80458258,154.87,154.82,11.52757713]
[1729102516238,6.4567,154.88,154.82,11.52757713]
[1729102516446,4.80547179,154.87,154.82,11.52757713]
[1729102516670,4.80547179,154.86,154.82,11.52757713]
[1729102516845,6.4567,154.88,154.82,11.52757713]
[1729102517044,4.80537866,154.87,154.82,11.52757713]
[1729102517266,4.80537866,154.86,154.82,11.52757713]
[1729102517565,6.4567,154.88,154.82,11.52757713]
[1729102517763,4.80630017,154.87,154.82,11.52757713]
[1729102517956,4.80630017,154.86,154.82,11.52757713]
[1729102518153,6.4567,154.88,154.82,11.52757713]
[1729102518350,4.80754521,154.87,154.82,11.52757713]
[1729102518666,4.80754521,154.86,154.82,11.52757713]
[1729102518875,6.4567,154.88,154.82,11.52757713]
[1729102519074,4.80720679,154.87,154.82,11.52757713]
[1729102519271,4.80720679,154.86,154.82,11.52757713]
[1729102519460,6.4567,154.88,154.82,11.52757713]
[1729102519660,4.80866902,154.87,154.82,11.52757713]
[1729102519965,4.80866902,154.86,154.82,11.52757713]
[1729102520269,4.81058218,154.85,154.82,11.52757713]
[1729102520568,6.4567,154.88,154.81,20.0]
[1729102520791,4.81059994,154.87,154.82,11.52757713]
[1729102520979,4.81059994,154.86,154.82,11.52757713]
[1729102521146,4.81059994,154.85,154.82,11.52757713]
[1729102521349,6.4567,154.88,154.82,11.52757713]
[1729102521676,23.776884,154.89,154.79,11.52757713]
[1729102521677,6.4578,154.85,154.79,11.52757713]
[1729102521851,11.27118667,154.84,154.79,11.52757713]
[1729102522051,4.81288667,154.83,154.79,11.52757713]
[1729102522252,6.4583,154.84,154.79,11.52757713]
[1729102522447,4.81286211,154.83,154.79,11.52757713]
[1729102522648,4.81265949,154.82,154.79,17.98767713]
[1729102522863,6.4583,154.84,154.79,17.98767713]
[1729102523179,4.8126607,154.83,154.79,17.98767713]
[1729102523360,4.8126607,154.82,154.79,17.98767713]
[1729102523561,6.4583,154.84,154.79,17.98767713]
[1729102523763,4.81221512,154.83,154.81,11.52757713]
[1729102523972,6.4583,154.84,154.81,11.52757713]
[1729102524271,4.8122351,154.83,154.81,11.52757713]
[1729102524580,6.4583,154.84,154.81,11.52757713]
[1729102524771,4.81201044,154.83,154.81,11.52757713]
[1729102525073,4.81192047,154.82,154.79,17.98777713]
[1729102525271,6.4587,154.83,154.79,17.98777713]
[1729102526353,4.81116896,154.82,154.79,17.98777713]
[1729102526553,6.4587,154.83,154.79,17.98777713]
[1729102526754,4.81103522,154.82,154.79,17.98777713]
[1729102527053,6.4587,154.83,154.79,17.98777713]
[1729102527268,4.81022727,154.82,154.79,17.98777713]
[1729102527459,6.4587,154.83,154.79,17.98777713]
[1729102527659,4.81039359,154.82,154.79,17.98777713]
[1729102527872,4.81039359,154.81,154.79,17.98777713]
[1729102528086,6.4587,154.83,154.79,17.98777713]
[1729102528291,4.80927221,154.82,154.79,17.98777713]
[1729102528462,6.4587,154.83,154.79,17.98777713]
[1729102528769,4.80929426,154.82,154.79,17.98777713]
[1729102528977,6.4587,154.83,154.79,17.98777713]
[1729102529166,4.80853115,154.82,154.79,17.98777713]
[1729102529370,6.4587,154.83,154.79,17.98777713]
[1729102529674,4.80901536,154.82,154.79,17.98777713]
[1729102529894,6.4587,154.83,154.79,17.98777713]
[1729102530068,4.80891857,154.82,154.79,17.98777713]
[1729102530268,6.4587,154.83,154.79,17.98777713]
[1729102530572,4.80918536,154.82,154.79,17.98777713]
[1729102530752,6.4587,154.83,154.79,17.98777713]
[1729102530959,4.80825563,154.82,154.79,17.98777713]
[1729102531177,6.4587,154.83,154.79,17.98777713]
[1729102531377,4.80777133,154.82,154.79,17.98777713]
[1729102531584,6.4587,154.83,154.79,17.98777713]
[1729102531756,4.80782075,154.82,154.79,17.98777713]
[1729102531960,6.4587,154.83,154.79,17.98777713]
[1729102532160,4.80782075,154.82,154.79,17.98777713]
[1729102532387,6.4587,154.83,154.79,17.98777713]
[1729102532566,4.80710752,154.82,154.79,17.98777713]
[1729102532776,6.4587,154.83,154.79,17.98777713]
[1729102532967,4.8070601,154.82,154.79,17.98777713]
[1729102533171,6.4587,154.83,154.79,17.98777713]
[1729102533379,6.4599,154.8,154.78,0.6226661]
[1729102534197,6.4596,154.81,154.78,0.6226661]
[1729102534362,4.80395068,154.8,154.78,0.6226661]
[1729102534558,6.4596,154.81,154.78,0.6226661]
[1729102534879,4.80373626,154.8,154.78,0.6226661]
[1729102535088,6.4596,154.81,154.78,0.6226661]
[1729102535272,4.80158615,154.8,154.78,0.6226661]
[1729102535470,6.4596,154.81,154.78,0.6226661]
[1729102535669,4.80154467,154.8,154.78,0.6226661]
[1729102535866,6.4596,154.81,154.78,0.6226661]
[1729102536067,4.80153499,154.8,154.78,0.6226661]
[1729102536283,6.4596,154.81,154.78,0.6226661]
[1729102536480,4.80010526,154.8,154.78,0.6226661]
[1729102536682,6.4596,154.81,154.78,0.6226661]